bitfinex-derivatives/quotes_BTCF0:USTF0_20251111
["timestamp","ask_amount","ask_price","bid_price","bid_amount"]
[1762892824220,0.83141552,103140.0,103100.0,0.05836]
[1762892824221,0.1427876,103110.0,103100.0,0.05836]
[1762892824409,0.51342559,103110.0,103100.0,0.1561197]
[1762892824719,0.6702328,103110.0,103100.0,0.1561197]
[1762892825108,0.67031515,103110.0,103100.0,0.1561197]
[1762892826110,0.67031515,103110.0,103100.0,0.1571197]
[1762892826509,0.67031515,103110.0,103100.0,0.1581197]
[1762892827107,0.67031515,103110.0,103100.0,0.0610927]
[1762892827508,0.67031515,103110.0,103100.0,0.1581197]
[1762892828210,0.83391236,103110.0,103100.0,0.0027327]
[1762892828410,0.83391236,103110.0,103100.0,0.1218597]
[1762892828611,0.67710515,103110.0,103100.0,0.1449797]
[1762892828914,0.67031515,103110.0,103100.0,0.1581197]
[1762892829220,0.82712236,103110.0,103100.0,0.1581197]
[1762892829419,0.67031515,103110.0,103100.0,0.1581197]
[1762892830512,0.67710515,103110.0,103100.0,0.1449797]
[1762892830707,0.67710515,103110.0,103100.0,0.0479527]
[1762892830906,0.67710515,103110.0,103100.0,0.1449797]
[1762892831517,0.67710515,103110.0,103100.0,0.0479527]
[1762892831712,0.83391236,103110.0,103100.0,0.002]
[1762892835923,0.83391236,103110.0,103100.0,0.099027]
[1762892836221,0.46547236,103110.0,103100.0,0.1581197]
[1762892836524,0.67039515,103110.0,103100.0,0.1581197]
[1762892838020,0.67718515,103110.0,103100.0,0.0479527]
[1762892838226,0.82720236,103110.0,103100.0,0.1581197]
[1762892838529,0.67039515,103110.0,103100.0,0.1581197]
[1762892838730,0.30187515,103110.0,103100.0,0.1581197]
[1762892838930,0.67039515,103110.0,103100.0,0.1581197]
[1762892839731,0.67039515,103110.0,103100.0,0.0610927]
[1762892840227,0.67039515,103110.0,103100.0,0.1581197]
[1762892841734,0.82720236,103110.0,103100.0,0.1581197]
[1762892842633,0.67039515,103110.0,103100.0,0.1581197]
[1762892845635,0.30187515,103110.0,103100.0,0.1581197]
[1762892845823,0.82724236,103110.0,103100.0,0.1581197]
[1762892846024,0.67043515,103110.0,103100.0,0.1581197]
[1762892846831,0.67059183,103110.0,103100.0,0.1581197]
[1762892850733,0.04805034,103110.0,103100.0,0.31508359]
[1762892850934,0.04805034,103110.0,103100.0,0.34989109]
[1762892851138,0.04805034,103110.0,103100.0,0.1929272]
[1762892851339,0.04805034,103110.0,103100.0,0.2452013]
[1762892851937,0.02293235,103110.0,103100.0,0.40216519]
[1762892852232,0.04471526,103120.0,103110.0,0.05533]
[1762892852438,0.00014526,103120.0,103110.0,0.34491923]
[1762892852630,0.25825329,103140.0,103130.0,0.1523288]
[1762892852631,0.62880329,103140.0,103130.0,0.1523288]
[1762892852830,0.63100128,103140.0,103130.0,0.1530615]
[1762892853132,0.79226517,103140.0,103130.0,0.0007327]
[1762892853330,0.1483588,103130.0,103120.0,0.1397179]
[1762892853630,0.1483588,103130.0,103120.0,0.1530706]
[1762892853631,0.30073068,103130.0,103120.0,0.1530706]
[1762892853822,0.17972321,103140.0,103130.0,0.1397088]
[1762892854028,0.41550731,103140.0,103130.0,0.1530615]
[1762892854229,0.04998731,103140.0,103130.0,0.1530615]
[1762892854530,0.14697671,103140.0,103130.0,0.1530615]
[1762892854735,0.3039406,103140.0,103130.0,0.1530615]
[1762892855033,0.3009406,103140.0,103130.0,0.1530615]
[1762892855229,0.3029406,103140.0,103130.0,0.1530615]
[1762892855929,0.14597671,103140.0,103130.0,0.1530615]
[1762892856422,0.14897671,103140.0,103130.0,0.1530615]
[1762892857632,0.05198731,103140.0,103130.0,0.1530615]
[1762892858335,0.14897671,103140.0,103130.0,0.1530615]
[1762892858637,0.00521932,103140.0,103130.0,0.34490043]
[1762892858931,0.00521932,103140.0,103130.0,0.63957453]
[1762892859132,0.00521932,103140.0,103130.0,0.64918275]
[1762892859334,0.00521932,103140.0,103130.0,0.60469949]
[1762892859837,0.00321932,103140.0,103130.0,0.36329949]
[1762892860025,0.0048,103150.0,103140.0,0.1523194]
[1762892860221,0.0048,103150.0,103140.0,0.67845599]
[1762892860428,0.0048,103150.0,103140.0,0.71322873]
[1762892860736,0.05156799,103150.0,103140.0,0.5214921]
[1762892860925,0.05156799,103150.0,103140.0,0.7638521]
[1762892861133,0.05262378,103150.0,103140.0,0.5214921]
[1762892861732,0.03059378,103150.0,103140.0,0.5214921]
[1762892861939,0.03059378,103150.0,103140.0,0.7638521]
[1762892862132,0.05262378,103150.0,103140.0,0.5214921]
[1762892862441,0.00805378,103150.0,103140.0,0.7638521]
[1762892862736,0.05262378,103150.0,103140.0,0.7638521]
[1762892863127,0.05262378,103150.0,103140.0,0.5214921]
[1762892863332,0.05262378,103150.0,103140.0,0.7638521]
[1762892863644,0.05262378,103150.0,103140.0,0.5214921]
[1762892865435,0.30656767,103150.0,103140.0,0.1530521]
[1762892866031,0.20958767,103150.0,103140.0,0.1530521]
[1762892866234,0.05262378,103150.0,103140.0,0.1530521]
[1762892866942,0.00805378,103150.0,103140.0,0.31001599]
[1762892867738,0.00585579,103150.0,103140.0,0.31001599]
[1762892867937,0.00014526,103160.0,103150.0,0.05533]
[1762892868243,0.00234325,103160.0,103150.0,0.5214027]
[1762892868544,0.00234325,103160.0,103150.0,0.67836659]
[1762892869342,0.00334325,103160.0,103150.0,0.67836659]
[1762892879834,0.00114526,103160.0,103150.0,0.67836659]
[1762892880242,0.00114526,103160.0,103150.0,0.5214027]
[1762892880541,0.00114526,103160.0,103150.0,0.67836659]
[1762892880739,0.04723325,103160.0,103150.0,0.5214027]
[1762892881036,0.30116774,103160.0,103150.0,0.1530427]
[1762892882245,0.30665774,103160.0,103150.0,0.0560627]
[1762892882630,0.30116774,103160.0,103150.0,0.0560627]
[1762892882831,0.30116774,103160.0,103150.0,0.1530427]
[1762892884837,0.14420385,103160.0,103150.0,0.1530427]
[1762892885041,0.30116774,103160.0,103150.0,0.1530427]
[1762892885447,0.67923774,103160.0,103150.0,0.1530427]
[1762892885646,0.66944774,103160.0,103150.0,0.1530427]
[1762892888643,0.67923774,103160.0,103150.0,0.0434427]
[1762892888846,0.73091923,103160.0,103150.0,0.0007327]
[1762892889347,0.73091923,103160.0,103140.0,0.00484754]
[1762892889348,0.14843,103150.0,103140.0,0.00484754]
[1762892889648,0.35927337,103150.0,103140.0,0.00484754]
[1762892890248,0.51623726,103150.0,103140.0,0.00484754]
[1762892890547,0.1494894,103140.0,103130.0,0.00014526]
[1762892890743,0.83389517,103140.0,103130.0,0.00014526]
[1762892891648,0.88557666,103140.0,103130.0,0.00014526]
[1762892892047,0.83489517,103140.0,103130.0,0.00014526]
[1762892892250,0.1514582,103120.0,103110.0,0.04535]
[1762892892451,0.1416776,103110.0,103100.0,0.09391274]
[1762892892642,0.30762948,103110.0,103100.0,0.0240427]
[1762892892837,0.30762948,103110.0,103100.0,0.0460827]
[1762892893137,0.46459337,103110.0,103100.0,0.0007327]
[1762892893342,0.46459337,103110.0,103100.0,0.0240427]
[1762892894448,0.30762948,103110.0,103100.0,0.0260427]
[1762892894650,0.30762948,103110.0,103100.0,0.0280427]
[1762892894948,0.30762948,103110.0,103100.0,0.0260427]
[1762892895153,0.30762948,103110.0,103100.0,0.0270427]
[1762892895344,0.30762948,103110.0,103100.0,0.0260427]
[1762892896051,0.46459337,103110.0,103100.0,0.0260427]
[1762892898245,0.46459337,103110.0,103100.0,0.0027327]
[1762892898655,0.46459337,103110.0,103100.0,0.002]
[1762892898952,0.61068032,103110.0,103100.0,0.002]
[1762892900451,0.097027,103100.0,103090.0,0.00014526]
[1762892900655,0.67829888,103100.0,103090.0,0.00014526]
[1762892901545,0.67829888,103100.0,103070.0,0.05912]
[1762892901546,0.1409658,103080.0,103070.0,0.05912]
[1762892901754,0.83528157,103080.0,103070.0,0.0598527]
[1762892901956,0.83528157,103080.0,103070.0,0.1569079]
[1762892902159,0.83528157,103080.0,103070.0,0.0598527]
[1762892902357,0.67831768,103080.0,103070.0,0.0598527]
[1762892903054,0.83528157,103080.0,103070.0,0.0598527]
[1762892903252,0.83528157,103080.0,103060.0,0.01379]
[1762892903556,0.30472909,103070.0,103060.0,0.1431274]
[1762892903756,0.30692708,103070.0,103060.0,0.0592627]
[1762892903955,0.30692708,103070.0,103060.0,0.1563274]
[1762892903956,0.30013708,103070.0,103060.0,0.1563274]
[1762892904559,0.30013708,103070.0,103060.0,0.1603274]
[1762892905244,0.30013708,103070.0,103060.0,0.1583274]
[1762892905448,0.30013708,103070.0,103060.0,0.1603274]
[1762892907056,0.30025944,103070.0,103060.0,0.1603274]
[1762892907253,0.46413569,103070.0,103060.0,0.0274727]
[1762892908145,0.46413569,103070.0,103060.0,0.0500627]
[1762892908546,0.30704944,103070.0,103060.0,0.1471274]
[1762892908756,0.83261569,103070.0,103060.0,0.004]
[1762892908953,0.83261569,103070.0,103030.0,0.1556146]
[1762892908954,0.1410035,103040.0,103030.0,0.1556146]
[1762892909154,0.82585399,103040.0,103030.0,0.1563473]
[1762892909955,0.82595816,103040.0,103030.0,0.1563473]
[1762892910261,0.82595816,103040.0,103030.0,0.1583473]
[1762892910656,0.82595816,103040.0,103030.0,0.1603473]
[1762892911256,0.82595816,103040.0,103030.0,0.0500627]
[1762892911257,0.83574816,103040.0,103030.0,0.0500627]
[1762892911461,0.83574816,103040.0,103030.0,0.04933]
[1762892911658,0.83574816,103040.0,103030.0,0.02674]
[1762892913165,0.83774816,103040.0,103030.0,0.02474]
[1762892913565,0.83774816,103040.0,103030.0,0.02374]
[1762892913966,0.83774816,103040.0,103030.0,0.1208329]
[1762892914166,0.83774816,103040.0,103030.0,0.04633]
[1762892914466,0.83974816,103040.0,103030.0,0.04533]
[1762892915058,0.47126816,103040.0,103030.0,0.1431556]
[1762892915259,0.67295191,103040.0,103030.0,0.1563556]
[1762892916385,0.05022216,103040.0,103030.0,0.31344185]
[1762892916687,0.41882216,103040.0,103030.0,0.31344185]
[1762892917486,0.41882216,103040.0,103030.0,0.1563556]
[1762892917685,0.57590841,103040.0,103030.0,0.31344185]
[1762892917886,0.20730841,103040.0,103030.0,0.31344185]
[1762892918287,0.57590841,103040.0,103030.0,0.31344185]
[1762892918481,0.41882216,103040.0,103030.0,0.31344185]
[1762892919083,0.51590566,103040.0,103030.0,0.31344185]
[1762892919282,0.14730566,103040.0,103030.0,0.31344185]
[1762892919784,0.41882216,103040.0,103030.0,0.31344185]
[1762892920478,0.00630216,103040.0,103030.0,0.31344185]
[1762892920685,0.29202216,103040.0,103030.0,0.31344185]
[1762892921688,0.00630216,103040.0,103030.0,0.31344185]
[1762892921883,0.00630216,103040.0,103030.0,0.55608185]
[1762892921884,0.37274417,103040.0,103030.0,0.55608185]
[1762892922285,0.37274417,103040.0,103030.0,0.31344185]
[1762892922482,0.37274417,103040.0,103030.0,0.55608185]
[1762892922685,0.37274417,103040.0,103030.0,0.31344185]
[1762892922990,0.37274417,103040.0,103030.0,0.55608185]
[1762892923294,0.00410417,103040.0,103030.0,0.55608185]
[1762892924183,0.00630216,103040.0,103030.0,0.55608185]
[1762892925183,0.00630216,103040.0,103030.0,0.31344185]
[1762892925378,0.00630216,103040.0,103030.0,0.55608185]
[1762892925591,0.00410417,103040.0,103030.0,0.55608185]
[1762892926591,0.00630216,103040.0,103030.0,0.55608185]
[1762892926781,0.05022216,103040.0,103030.0,0.55608185]
[1762892927181,0.00630216,103040.0,103030.0,0.55608185]
[1762892927887,0.00630216,103040.0,103030.0,0.3989956]
[1762892928087,0.00630216,103040.0,103030.0,0.55608185]
[1762892928791,0.00630216,103040.0,103030.0,0.31344185]
[1762892928990,0.00630216,103040.0,103030.0,0.55608185]
[1762892929791,0.02762216,103040.0,103030.0,0.31344185]
[1762892929979,0.30375191,103040.0,103030.0,0.31344185]
[1762892930177,0.30375191,103040.0,103030.0,0.34821459]
[1762892930382,0.20666841,103040.0,103030.0,0.34821459]
[1762892931183,0.30375191,103040.0,103030.0,0.31344185]
[1762892931385,0.20666841,103040.0,103030.0,0.31344185]
[1762892931584,0.20666841,103040.0,103030.0,0.34821459]
[1762892931786,0.30375191,103040.0,103030.0,0.34821459]
[1762892932183,0.04958216,103040.0,103030.0,0.34821459]
[1762892934896,0.02762216,103040.0,103030.0,0.34821459]
[1762892935085,0.00630216,103040.0,103030.0,0.34821459]
[1762892937396,0.00410417,103040.0,103030.0,0.34821459]
[1762892937592,0.00410417,103040.0,103030.0,0.59085459]
[1762892937785,0.00410417,103040.0,103030.0,0.64312869]
[1762892937990,0.00410417,103040.0,103030.0,1.01176869]
[1762892938189,0.00410417,103040.0,103030.0,0.76912869]
[1762892938399,0.00410417,103040.0,103030.0,1.01176869]
[1762892938693,0.00410417,103040.0,103030.0,0.76912869]
[1762892938894,0.00410417,103040.0,103030.0,1.01176869]
[1762892939096,0.00410417,103040.0,103030.0,0.76912869]
[1762892939296,0.00410417,103040.0,103030.0,1.01176869]
[1762892940500,4.17e-06,103040.0,103030.0,1.01176869]
[1762892940701,0.00014526,103050.0,103040.0,0.05922]
[1762892941002,0.00014526,103050.0,103040.0,0.31412245]
[1762892941297,0.00014526,103050.0,103040.0,0.50598144]
[1762892941593,0.06147149,103080.0,103070.0,0.1562753]
[1762892941594,0.20191625,103080.0,103070.0,0.1562753]
[1762892941802,0.42734004,103080.0,103070.0,0.0465427]
[1762892942002,0.57252531,103080.0,103070.0,0.0465427]
[1762892942700,0.72961156,103080.0,103070.0,0.0465427]
[1762892943106,0.73261156,103080.0,103070.0,0.143598]
[1762892944601,0.73461156,103080.0,103070.0,0.143598]
[1762892945294,0.73461156,103080.0,103070.0,0.0239727]
[1762892946103,0.1486753,103070.0,103060.0,0.09720956]
[1762892946308,0.46504579,103070.0,103060.0,0.09720956]
[1762892946804,0.30795954,103070.0,103060.0,0.09720956]
[1762892947001,0.30795954,103070.0,103060.0,0.12118226]
[1762892947301,0.30895954,103070.0,103060.0,0.12118226]
[1762892947506,0.30895954,103070.0,103060.0,0.14375226]
[1762892948004,0.30995954,103070.0,103060.0,0.14375226]
[1762892948304,0.46704579,103070.0,103060.0,0.00087796]
[1762892948510,0.30316954,103070.0,103060.0,0.15716286]
[1762892951703,0.67177014,103070.0,103060.0,0.15716286]
[1762892953204,0.20611424,103070.0,103060.0,0.31424911]
[1762892953405,0.57471424,103070.0,103060.0,0.31424911]
[1762892953704,0.57471424,103070.0,103060.0,0.15716286]
[1762892956201,0.67177014,103070.0,103060.0,0.06009796]
[1762892956407,0.83564639,103070.0,103060.0,0.09721056]
[1762892956594,0.67856014,103070.0,103060.0,0.12045056]
[1762892956797,0.67856014,103070.0,103060.0,0.14375326]
[1762892957703,0.67856014,103070.0,103060.0,0.12118326]
[1762892957907,0.83564639,103070.0,103060.0,0.00014526]
[1762892963610,0.98137548,103070.0,103060.0,0.00014526]
[1762892964315,0.98137548,103070.0,103040.0,0.17474634]
[1762892964316,0.1469045,103050.0,103040.0,0.17474634]
[1762892964610,0.83183499,103050.0,103040.0,0.0978166]
[1762892964814,0.83183499,103050.0,103040.0,0.0978174]
[1762892965607,0.83183499,103050.0,103040.0,0.1205174]
[1762892966001,0.83183499,103050.0,103040.0,0.1415974]
[1762892966198,0.83183499,103050.0,103040.0,0.1405974]
[1762892966403,0.83483499,103050.0,103040.0,0.1405974]
[1762892966809,0.83583499,103050.0,103040.0,0.1405974]
[1762892968413,0.58167424,103050.0,103040.0,0.1535174]
[1762892968613,0.67350944,103050.0,103040.0,0.1535174]
[1762892968914,0.67883103,103050.0,103040.0,0.1405974]
[1762892969411,0.83599887,103050.0,103040.0,0.0435127]
[1762892969612,0.1552544,103040.0,103030.0,0.1187872]
[1762892969806,0.31462023,103040.0,103030.0,0.1187872]
[1762892970410,0.31462023,103040.0,103030.0,0.1195199]
[1762892970910,0.31662023,103040.0,103030.0,0.1195199]
[1762892972506,0.31662023,103040.0,103030.0,0.1405999]
[1762892975714,0.31662023,103040.0,103030.0,0.0224327]
[1762892976316,0.31662023,103040.0,103030.0,0.0007327]
[1762892976721,0.31662023,103040.0,103030.0,0.0224327]
[1762892979116,0.1416932,103020.0,103010.0,0.1532967]
[1762892979322,0.66965903,103020.0,103010.0,0.1540294]
[1762892979618,0.66965903,103020.0,103010.0,0.0569227]
[1762892979820,0.67445903,103020.0,103010.0,0.0435127]
[1762892980319,0.67445903,103020.0,103010.0,0.0445127]
[1762892981218,0.67445903,103020.0,103010.0,0.098845]
[1762892981418,0.83162687,103020.0,103010.0,0.119545]
[1762892981614,0.83162687,103020.0,103010.0,0.121545]
[1762892981818,0.67445903,103020.0,103010.0,0.142625]
[1762892982119,0.67445903,103020.0,103010.0,0.140625]
[1762892982320,0.67445903,103020.0,103010.0,0.141625]
[1762892983514,0.51249119,103020.0,103010.0,0.154545]
[1762892983722,0.04678799,103020.0,103010.0,0.154545]
[1762892983925,0.57259583,103020.0,103010.0,0.154545]
[1762892985321,0.41542799,103020.0,103010.0,0.154545]
[1762892986614,0.04678799,103020.0,103010.0,0.154545]
[1762892986814,0.41542799,103020.0,103010.0,0.154545]
[1762892987126,0.04678799,103020.0,103010.0,0.34659528]
[1762892987316,0.37083799,103020.0,103010.0,0.34659528]
[1762892987515,0.39400799,103020.0,103010.0,0.34659528]
[1762892987723,0.39400799,103020.0,103010.0,0.18942744]
[1762892988331,0.41542799,103020.0,103010.0,0.18942744]
[1762892991431,0.41542799,103020.0,103010.0,0.24170154]
[1762892994121,0.41542799,103020.0,103010.0,0.2068191]
[1762892996034,0.04678799,103020.0,103010.0,0.2068191]
[1762892996227,0.41542799,103020.0,103010.0,0.2068191]
[1762892999531,0.57259583,103020.0,103010.0,0.2068191]
[1762892999934,0.66969873,103020.0,103010.0,0.2068191]
[1762893000419,0.67449873,103020.0,103010.0,0.17655185]
[1762893000833,0.67449873,103020.0,103010.0,0.03592685]
[1762893000834,0.83166657,103020.0,103010.0,0.03592685]
[1762893001030,0.1470423,103010.0,103000.0,0.03492685]
[1762893001238,0.1470423,103010.0,102990.0,0.03492685]
[1762893001239,0.1553918,103000.0,102990.0,0.03492685]
[1762893001425,0.68339763,103000.0,102990.0,0.0971312]
[1762893001735,0.68339763,103000.0,102990.0,0.0978639]
[1762893002223,0.1418212,102990.0,102980.0,0.18903674]
[1762893002536,0.30828703,102990.0,102980.0,0.17684944]
[1762893003328,0.30828703,102990.0,102980.0,0.15556944]
[1762893003525,0.20405583,102990.0,102980.0,0.19254944]
[1762893004437,0.66982703,102990.0,102980.0,0.19254944]
[1762893004736,0.67692703,102990.0,102980.0,0.19254944]
[1762893005430,0.67692703,102990.0,102980.0,0.19554944]
[1762893005637,0.67692703,102990.0,102980.0,0.05078779]
[1762893005932,0.67692703,102990.0,102980.0,0.00682779]
[1762893006133,0.67692703,102990.0,102980.0,0.12664839]
[1762893006724,0.67692703,102990.0,102980.0,0.14792839]
[1762893007539,0.04688799,102990.0,102980.0,0.16062839]
[1762893007743,0.41556799,102990.0,102980.0,0.16062839]
[1762893008041,0.66986703,102990.0,102980.0,0.16062839]
[1762893008942,0.67696703,102990.0,102980.0,0.12664839]
[1762893009128,0.67696703,102990.0,102980.0,0.14792839]
[1762893009732,0.57273583,102990.0,102980.0,0.16062839]
[1762893010343,0.57277583,102990.0,102980.0,0.16062839]
[1762893010642,0.66990703,102990.0,102980.0,0.16062839]
[1762893011431,0.41560799,102990.0,102980.0,0.16062839]
[1762893011632,0.04688799,102990.0,102980.0,0.16062839]
[1762893011833,0.41560799,102990.0,102980.0,0.31779623]
[1762893012237,0.04688799,102990.0,102980.0,0.31779623]
[1762893012445,0.38976799,102990.0,102980.0,0.31479623]
[1762893012835,0.38976799,102990.0,102980.0,0.31279623]
[1762893015946,0.38976799,102990.0,102980.0,0.15562839]
[1762893017950,0.48689889,102990.0,102980.0,0.15562839]
[1762893018139,0.38976799,102990.0,102980.0,0.15562839]
[1762893019146,0.48689889,102990.0,102980.0,0.15562839]
[1762893019450,0.64406673,102990.0,102980.0,0.15562839]
[1762893021141,0.65741673,102990.0,102980.0,0.15562839]
[1762893022247,0.64406673,102990.0,102980.0,0.15562839]
[1762893023544,0.48689889,102990.0,102980.0,0.15562839]
[1762893023753,0.38976799,102990.0,102980.0,0.15562839]
[1762893023950,0.48689889,102990.0,102980.0,0.15562839]
[1762893026357,0.5073351,102990.0,102980.0,0.15562839]
[1762893026855,0.48689889,102990.0,102980.0,0.15562839]
[1762893027257,0.50734401,102990.0,102980.0,0.15562839]
[1762893028355,0.67786185,102990.0,102980.0,0.04578779]
[1762893028659,0.67786185,102990.0,102980.0,0.00182779]
[1762893028957,0.6780293,102990.0,102980.0,0.02322779]
[1762893029345,0.6780293,102990.0,102980.0,0.04473779]
[1762893029857,0.6780293,102990.0,102980.0,0.02322779]
[1762893030049,0.6780293,102990.0,102980.0,0.00182779]
[1762893031357,0.6780293,102990.0,102980.0,0.09896809]
[1762893031654,0.6780293,102990.0,102980.0,0.00182779]
[1762893031860,0.6780293,102990.0,102980.0,0.09896809]
[1762893032156,0.6780293,102990.0,102980.0,0.02322779]
[1762893032357,0.6780293,102990.0,102980.0,0.12036809]
[1762893032560,0.6780293,102990.0,102980.0,0.02322779]
[1762893033651,0.6780293,102990.0,102980.0,0.00182779]
[1762893034347,0.83536459,102990.0,102980.0,0.00182779]
[1762893034549,0.6780293,102990.0,102980.0,0.00182779]
[1762893034760,0.83536459,102990.0,102980.0,0.00182779]
[1762893035057,0.6780293,102990.0,102980.0,0.00182779]
[1762893035446,0.6780293,102990.0,102980.0,0.00109509]
[1762893035661,0.83536459,102990.0,102980.0,0.00109509]
[1762893035854,0.6780293,102990.0,102980.0,0.00109509]
[1762893036161,0.52069401,102990.0,102980.0,0.02249509]
[1762893036455,0.6780293,102990.0,102980.0,0.02322779]
[1762893036658,0.6780293,102990.0,102980.0,0.00182779]
[1762893037043,0.6780293,102990.0,102980.0,0.09896809]
[1762893037560,0.6780293,102990.0,102980.0,0.00182779]
[1762893037755,0.6780293,102990.0,102980.0,0.09896809]
[1762893038056,0.6780293,102990.0,102980.0,0.14187809]
[1762893038452,0.6780293,102990.0,102980.0,0.09896809]
[1762893039357,0.6780293,102990.0,102980.0,0.00182779]
[1762893040555,0.83536459,102990.0,102980.0,0.00182779]
[1762893040952,0.83536459,102990.0,102980.0,0.00109509]
[1762893041959,0.81491947,102990.0,102980.0,0.00109509]
[1762893045252,0.1438803,102980.0,102970.0,0.1001498]
[1762893045458,0.46074887,102980.0,102970.0,0.1001498]
[1762893045661,0.46074887,102980.0,102970.0,0.003]
[1762893046361,0.46082809,102980.0,102970.0,0.003]
[1762893046556,0.46082809,102980.0,102970.0,0.004]
[1762893046750,0.14615751,102980.0,102970.0,0.006]
[1762893046955,0.46082809,102980.0,102970.0,0.006]
[1762893049958,0.46082809,102980.0,102970.0,0.1038825]
[1762893050656,0.46082809,102980.0,102970.0,0.0067327]
[1762893050855,0.46082809,102980.0,102970.0,0.0281327]
[1762893051055,0.46082809,102980.0,102970.0,0.0067327]
[1762893051661,0.46082809,102980.0,102970.0,0.0283327]
[1762893051853,0.46082809,102980.0,102970.0,0.0057327]
[1762893052053,0.46082809,102980.0,102970.0,0.0047327]
[1762893052254,0.46082809,102980.0,102970.0,0.004]
[1762893055862,0.46082809,102980.0,102970.0,0.1476924]
[1762893056058,0.2995528,102980.0,102970.0,0.1607724]
[1762893056359,0.2995528,102980.0,102970.0,0.0636227]
[1762893056360,0.6683128,102980.0,102970.0,0.0636227]
[1762893056564,0.6683128,102980.0,102970.0,0.1607724]
[1762893056869,0.82564809,102980.0,102970.0,0.0636227]
[1762893057164,0.82958809,102980.0,102970.0,0.0505427]
[1762893057360,0.82958809,102980.0,102970.0,0.1476924]
[1762893057563,0.00227721,102980.0,102970.0,0.31810769]
[1762893057762,0.00014526,102990.0,102980.0,0.1554303]
[1762893057763,0.40111616,102990.0,102980.0,0.1554303]
[1762893057958,0.56064944,102990.0,102980.0,0.31349829]
[1762893058156,0.56064944,102990.0,102980.0,0.156163]
[1762893059367,0.56164944,102990.0,102980.0,0.156163]
[1762893059566,0.40431415,102990.0,102980.0,0.156163]
[1762893059766,0.56164944,102990.0,102980.0,0.156163]
[1762893060165,0.56658944,102990.0,102980.0,0.0233027]
[1762893060366,0.1397803,102980.0,102970.0,0.09553867]
[1762893060569,0.46999887,102980.0,102970.0,0.0037327]
[1762893061463,0.46999887,102980.0,102970.0,0.0263027]
[1762893062269,0.46999887,102980.0,102970.0,0.0273027]
[1762893063170,0.46999887,102980.0,102970.0,0.0047327]
[1762893063764,0.46999887,102980.0,102970.0,0.0273027]
[1762893064971,0.46999887,102980.0,102970.0,0.0047327]
[1762893066067,0.46999887,102980.0,102970.0,0.0273027]
[1762893068570,0.46999887,102980.0,102970.0,0.0047327]
[1762893068777,0.46999887,102980.0,102950.0,1.81947609]
[1762893068778,0.04264,102960.0,102950.0,1.54762867]
[1762893068964,0.82542777,102960.0,102950.0,1.64552987]
[1762893069574,0.66809248,102960.0,102950.0,1.64552987]
[1762893069773,0.66809248,102960.0,102950.0,0.19005987]
[1762893069980,0.66809248,102960.0,102950.0,0.19505987]
[1762893070472,0.66809248,102960.0,102950.0,0.09789137]
[1762893070677,1.13513488,102960.0,102940.0,0.03492867]
[1762893070974,0.1531681,102940.0,102930.0,0.07945867]
[1762893071173,0.1398275,102930.0,102920.0,0.24268227]
[1762893071374,0.29936078,102930.0,102920.0,0.19114087]
[1762893071567,0.20217328,102930.0,102920.0,0.1562122]
[1762893071765,0.29936078,102930.0,102920.0,0.1562122]
[1762893072479,0.20217328,102930.0,102920.0,0.1562122]
[1762893072672,0.20317328,102930.0,102920.0,0.1622122]
[1762893072873,0.30036078,102930.0,102920.0,0.1622122]
[1762893073174,0.20317328,102930.0,102920.0,0.1622122]
[1762893073684,0.30136078,102930.0,102920.0,0.1632122]
[1762893073873,0.20417328,102930.0,102920.0,0.1632122]
[1762893074270,0.04683799,102930.0,102920.0,0.32054749]
[1762893074478,0.37299799,102930.0,102920.0,0.32054749]
[1762893075374,0.57297328,102930.0,102920.0,0.1632122]
[1762893075680,0.57297328,102930.0,102920.0,0.32054749]
[1762893075883,0.41563799,102930.0,102920.0,0.32054749]
[1762893076283,0.51282549,102930.0,102920.0,0.32054749]
[1762893076474,0.41563799,102930.0,102920.0,0.32054749]
[1762893076676,0.51282549,102930.0,102920.0,0.32054749]
[1762893077981,0.41563799,102930.0,102920.0,0.32054749]
[1762893078979,0.04683799,102930.0,102920.0,0.32054749]
[1762893079182,0.41567799,102930.0,102920.0,0.32054749]
[1762893080387,0.67020078,102930.0,102920.0,0.1632122]
[1762893081082,0.67020078,102930.0,102920.0,0.0660227]
[1762893081283,0.67544078,102930.0,102920.0,0.0660227]
[1762893081497,0.67544078,102930.0,102920.0,0.0522627]
[1762893081789,0.83277607,102930.0,102920.0,0.007]
[1762893081988,0.8536644,102930.0,102920.0,0.007]
[1762893082482,0.53899382,102930.0,102920.0,0.007]
[1762893082671,0.86324211,102930.0,102920.0,0.007]
[1762893083480,0.1396969,102920.0,102910.0,8.872e-05]
[1762893083676,0.45656547,102920.0,102910.0,8.872e-05]
[1762893083877,0.45656547,102920.0,102910.0,0.15357782]
[1762893084072,0.04469799,102920.0,102910.0,0.15357782]
[1762893084475,0.82540547,102920.0,102910.0,0.00082142]
[1762893084681,0.84625343,102920.0,102910.0,0.00708872]
[1762893084996,0.84725343,102920.0,102910.0,0.00708872]
[1762893085583,0.84825343,102920.0,102910.0,0.00708872]
[1762893086488,0.1283158,102900.0,102890.0,0.1533189]
[1762893086787,0.65688908,102900.0,102890.0,0.1540516]
[1762893087188,0.49955379,102900.0,102890.0,0.0568327]
[1762893087387,0.81431782,102900.0,102890.0,0.0568327]
[1762893087591,0.50064724,102900.0,102890.0,0.0568327]
[1762893087885,0.81531782,102900.0,102890.0,0.0568327]
[1762893088581,0.82025782,102900.0,102890.0,0.0007327]
[1762893088891,0.66321358,102900.0,102890.0,0.0219427]
[1762893089279,0.1283252,102890.0,102880.0,0.05555]
[1762893089485,0.28814953,102890.0,102880.0,0.0562827]
[1762893089692,0.28826087,102890.0,102880.0,0.1535174]
[1762893089879,0.28826087,102890.0,102880.0,0.0562827]
[1762893090075,0.19103567,102890.0,102880.0,0.0562827]
[1762893090281,0.28826087,102890.0,102880.0,0.0562827]
[1762893090483,0.28826087,102890.0,102880.0,0.1535174]
[1762893091179,0.03340933,102890.0,102880.0,0.1535174]
[1762893091376,0.03440933,102890.0,102880.0,0.1535174]
[1762893091582,0.31360933,102890.0,102880.0,0.1535174]
[1762893091781,0.00430933,102890.0,102880.0,0.31114374]
[1762893091986,0.37350933,102890.0,102880.0,0.55414374]
[1762893092190,0.50183453,102890.0,102880.0,0.1535174]
[1762893092391,0.65946087,102890.0,102880.0,0.1535174]
[1762893092990,0.40460933,102890.0,102880.0,0.1535174]
[1762893093486,0.37350933,102890.0,102880.0,0.1535174]
[1762893093691,0.38905933,102890.0,102880.0,0.1535174]
[1762893093887,0.40460933,102890.0,102880.0,0.1535174]
[1762893094083,0.03540933,102890.0,102880.0,0.1535174]
[1762893094287,0.40496933,102890.0,102880.0,0.1535174]
[1762893094486,0.38941933,102890.0,102880.0,0.1535174]
[1762893094787,0.40496933,102890.0,102880.0,0.1535174]
[1762893095678,0.00430933,102890.0,102880.0,0.31114374]
[1762893095882,0.37382933,102890.0,102880.0,0.1535174]
[1762893096192,0.65978087,102890.0,102880.0,0.1535174]
[1762893096494,0.65978087,102890.0,102880.0,0.0562827]
[1762893096680,0.65978087,102890.0,102880.0,0.1535174]
[1762893097479,0.40492933,102890.0,102880.0,0.1535174]
[1762893097883,0.00430933,102890.0,102880.0,0.1535174]